lending/lending_fUSD_20250819
["ID","MTS","AMOUNT","RATE_DAILY","PERIOD"]
[380262818,1755629664900,-400.0,0.00024643,30]
[380262819,1755629664950,-1440.27,0.00024643,30]
[380262820,1755629664998,-873.42,0.00024643,30]
[380262821,1755629665048,-2138.96,0.00024643,30]
[380262822,1755629665098,-5091.06,0.00024643,30]
[380262823,1755629665148,-403.04,0.00024643,30]
[380262824,1755629665197,-1319.16,0.00024643,30]
[380262825,1755629665247,-2794.97,0.00024643,30]
[380262826,1755629665298,-9767.21,0.00024643,30]
[380262827,1755629665348,-1856.7,0.00024643,30]
[380262828,1755629665397,-400.0,0.00024643,30]
[380262829,1755629665447,-400.0,0.00024643,30]
[380262830,1755629665496,-400.0,0.00024643,30]
[380262831,1755629665543,-2336.1,0.00024643,30]
[380262832,1755629665590,-400.0,0.00024643,30]
[380262833,1755629665637,-886.26,0.00024643,30]
[380262834,1755629665684,-2387.6,0.00024643,30]
[380262835,1755629665735,-8648.05,0.00024643,30]
[380262836,1755629665783,-400.0,0.00024643,30]
[380262837,1755629665831,-613.46,0.00024643,30]
[380262838,1755629665881,-533.96,0.00024643,30]
[380262839,1755629665929,-2852.26,0.00024643,30]
[380262840,1755629665978,-1104.69,0.00024643,30]
[380262841,1755629666024,-1505.36,0.00024643,30]
[380262842,1755629666073,-400.0,0.00024643,30]
[380262843,1755629666128,-3210.75,0.00024643,30]
[380262844,1755629666175,-2779.66,0.00024643,30]
[380262845,1755629666226,-400.0,0.00024643,30]
[380262846,1755629666280,-3076.17,0.00024643,30]
[380262847,1755629666329,-2284.58,0.00024643,30]
[380262848,1755629666381,-2430.08,0.00024643,30]
[380262849,1755629666429,-2134.11,0.00024643,30]
[380262850,1755629666476,-400.0,0.00024643,30]
[380262851,1755629666521,-400.0,0.00024643,30]
[380262852,1755629666564,-400.0,0.00024643,30]
[380262853,1755629666605,-400.0,0.00024643,30]
[380262854,1755629666648,-2514.7,0.00024643,30]
[380262855,1755629666696,-745.23,0.00024643,30]
[380262856,1755629666740,-2373.48,0.00024643,30]
[380262857,1755629666783,-605.17,0.00024643,30]
[380262858,1755629666827,-3448.04,0.00024643,30]
[380262859,1755629666869,-1029.54,0.00024643,30]
[380262860,1755629666911,-2357.68,0.00024643,30]
[380262861,1755629666953,-503.46,0.00024643,30]
[380262862,1755629666996,-400.0,0.00024643,30]
[380262863,1755629667040,-400.0,0.00024643,30]
[380262864,1755629667084,-404.26,0.00024643,30]
[380262865,1755629667132,-1373.57,0.00024643,30]
[380262866,1755629667180,-400.0,0.00024643,30]
[380262867,1755629667231,-2686.2,0.00024643,30]
[380262868,1755629667280,-400.0,0.00024643,30]
[380262869,1755629667333,-400.0,0.00024643,30]
[380262870,1755629667384,-1835.59,0.00024643,30]
[380262871,1755629667434,-1238.74,0.00024643,30]
[380262872,1755629667482,-4200.35,0.00024643,30]
[380262873,1755629667526,-1206.55,0.00024643,30]
[380262874,1755629667570,-2460.68,0.00024643,30]
[380262875,1755629667614,-400.0,0.00024643,30]
[380262876,1755629667658,-4651.33,0.00024643,30]
[380262877,1755629667703,-3433.97,0.00024643,30]
[380262878,1755629667748,-736.49,0.00024643,30]
[380262879,1755629667793,-400.0,0.00024643,30]
[380262880,1755629667842,-400.0,0.00024643,30]
[380262881,1755629667892,-5950.32,0.00024643,30]
[380262882,1755629667944,-1557.33,0.00024643,30]
[380262883,1755629667992,-400.0,0.00024643,30]
[380262884,1755629668041,-400.0,0.00024643,30]
[380262885,1755629668089,-2272.47,0.00024643,30]
[380262886,1755629668137,-949.33,0.00024643,30]
[380262887,1755629668185,-400.0,0.00024643,30]
[380262888,1755629668234,-557.78,0.00024643,30]
[380262889,1755629668285,-4401.83,0.00024643,30]
[380262890,1755629668340,-618.28,0.00024643,30]
[380262891,1755629668392,-2999.81,0.00024643,30]
[380262892,1755629668444,-400.0,0.00024643,30]
[380262893,1755629668495,-2530.73,0.00024643,30]
[380262894,1755629668543,-3017.82,0.00024643,30]
[380262895,1755629668590,-508.97,0.00024643,30]
[380262896,1755629668913,-400.0,0.00024643,30]
[380262897,1755629668961,-731.53,0.00024643,30]
[380262898,1755629669007,-13739.54,0.00024643,30]
[380262899,1755629669055,-504.15,0.00024643,30]
[380262900,1755629669104,-5408.34,0.00024643,30]
[380262901,1755629669153,-1737.18,0.00024643,30]
[380262902,1755629669202,-2927.84,0.00024643,30]
[380262903,1755629669250,-400.0,0.00024643,30]
[380262904,1755629669297,-1391.14,0.00024643,30]
[380262905,1755629669346,-400.0,0.00024643,30]
[380262906,1755629669394,-793.38,0.00024643,30]
[380262907,1755629669441,-466.8,0.00024643,30]
[380262908,1755629669486,-1988.61,0.00024643,30]
[380262909,1755629669532,-2851.15,0.00024643,30]
[380262910,1755629669576,-400.0,0.00024643,30]
[380262911,1755629669623,-5744.77,0.00024643,30]
[380262912,1755629669669,-438.95,0.00024643,30]
[380262913,1755629669718,-531.03,0.00024643,30]
[380262914,1755629669765,-400.0,0.00024643,30]
[380262915,1755629669814,-400.0,0.00024643,30]
[380262916,1755629669863,-400.0,0.00024643,30]
[380262917,1755629669912,-400.0,0.00024643,30]
[380262918,1755629669961,-8313.98,0.00024643,30]
[380262919,1755629670013,-2839.12,0.00024643,30]
[380262920,1755629670064,-2228.12,0.00024643,30]
[380262921,1755629670115,-2982.47,0.00024643,30]
[380262922,1755629670166,-1818.87,0.00024643,30]
[380262923,1755629670217,-6459.08,0.00024643,30]
[380262924,1755629670272,-600.27,0.00024643,30]
[380262925,1755629670323,-1141.2,0.00024643,30]
[380262926,1755629670381,-655.95,0.00024643,30]
[380262927,1755629670432,-2988.69,0.00024643,30]
[380262928,1755629670484,-1484.62,0.00024643,30]
[380262929,1755629670531,-2194.47,0.00024643,30]
[380262930,1755629670578,-465.01,0.00024643,30]
[380262931,1755629670625,-2581.56,0.00024643,30]
[380262932,1755629670673,-2146.97,0.00024643,30]
[380262933,1755629670722,-400.0,0.00024643,30]
[380262934,1755629670769,-2398.9,0.00024643,30]
[380262935,1755629670816,-1002.47,0.00024643,30]
[380262936,1755629670865,-5236.54,0.00024643,30]
[380262937,1755629670913,-1952.94,0.00024643,30]
[380262938,1755629670961,-400.0,0.00024643,30]
[380262939,1755629671013,-400.0,0.00024643,30]
[380262940,1755629671070,-1771.72,0.00024643,30]
[380262941,1755629671125,-400.0,0.00024643,30]
[380262942,1755629671179,-2157.93,0.00024643,30]
[380262943,1755629671230,-1269.7,0.00024643,30]
[380262944,1755629671279,-574.43,0.00024643,30]
[380262945,1755629671330,-530.22,0.00024643,30]
[380262946,1755629671380,-400.0,0.00024643,30]
[380262947,1755629671429,-701.04,0.00024643,30]
[380262948,1755629671478,-1792.5,0.00024643,30]
[380262949,1755629671525,-13853.77,0.00024643,30]
[380262950,1755629671572,-400.0,0.00024643,30]
[380262951,1755629671619,-3509.78,0.00024643,30]
[380262952,1755629671668,-899.28,0.00024643,30]
[380262953,1755629671720,-2160.57,0.00024643,30]
[380262954,1755629671770,-5482.37,0.00024643,30]
[380262955,1755629671817,-1714.08,0.00024643,30]
[380262956,1755629671870,-1767.59,0.00024643,30]
[380262957,1755629671922,-400.0,0.00024643,30]
[380262958,1755629671974,-3518.02,0.00024643,30]
[380262959,1755629672026,-694.79,0.00024643,30]
[380262960,1755629672079,-536.43,0.00024643,30]
[380262961,1755629672132,-9944.32,0.00024643,30]
[380262962,1755629672183,-1214.14,0.00024643,30]
[380262963,1755629672235,-2414.97,0.00024643,30]
[380262964,1755629672282,-2913.31,0.00024643,30]
[380262965,1755629672332,-400.0,0.00024643,30]
[380262966,1755629672384,-665.01,0.00024643,30]
[380262967,1755629672430,-400.0,0.00024643,30]
[380262968,1755629672472,-467.17,0.00024643,30]
[380262969,1755629672515,-1564.68,0.00024643,30]
[380262970,1755629672561,-3495.15,0.00024643,30]
[380262971,1755629672608,-400.0,0.00024643,30]
[380262972,1755629672655,-400.0,0.00024643,30]
[380262973,1755629672702,-5306.47,0.00024643,30]
[380262974,1755629672748,-1902.63,0.00024643,30]
[380262975,1755629672794,-419.97,0.00024643,30]
[380262976,1755629672840,-457.96,0.00024643,30]
[380262977,1755629672891,-400.0,0.00024643,30]
[380262978,1755629672939,-400.0,0.00024643,30]
[380262979,1755629672986,-400.0,0.00024643,30]
[380262980,1755629673035,-1581.53,0.00024643,30]
[380262981,1755629673084,-469.54,0.00024643,30]
[380262982,1755629673137,-886.22,0.00024643,30]
[380262983,1755629673190,-3147.2,0.00024643,30]
[380262984,1755629673244,-2099.26,0.00024643,30]
[380262985,1755629673295,-845.89,0.00024643,30]
[380262986,1755629673348,-496.54,0.00024643,30]
[380262987,1755629673402,-1879.09,0.00024643,30]
[380262988,1755629673457,-2641.07,0.00024643,30]
[380262989,1755629673506,-1350.55,0.00024643,30]
[380262990,1755629673554,-792.84,0.00024643,30]
[380262991,1755629673602,-4723.51,0.00024643,30]
[380262992,1755629673649,-2510.78,0.00024643,30]
[380262993,1755629673698,-1157.65,0.00024643,30]
[380262994,1755629673746,-3198.68,0.00024643,30]
[380262995,1755629673793,-1686.82,0.00024643,30]
[380262996,1755629673840,-1134.14,0.00024643,30]
[380262997,1755629673888,-963.72,0.00024643,30]
[380262998,1755629673935,-985.51,0.00024643,30]
[380262999,1755629673980,-2783.51,0.00024643,30]
[380263000,1755629674024,-2992.17,0.00024643,30]
[380263001,1755629674066,-1901.27,0.00024643,30]
[380263002,1755629674109,-1793.91,0.00024643,30]
[380263003,1755629674153,-1341.44,0.00024643,30]
[380263004,1755629674199,-2034.19,0.00024643,30]
[380263005,1755629674246,-1021.54,0.00024643,30]
[380263006,1755629674292,-2475.91,0.00024643,30]
[380263007,1755629674342,-400.0,0.00024643,30]
[380263008,1755629674392,-1456.34,0.00024643,30]
[380263009,1755629674437,-400.0,0.00024643,30]
[380263010,1755629674481,-2487.45,0.00024643,30]
[380263011,1755629674771,-400.0,0.00024643,30]
[380263012,1755629674822,-2304.79,0.00024643,30]
[380263013,1755629674868,-2913.63,0.00024643,30]
[380263014,1755629674913,-1728.12,0.00024643,30]
[380263015,1755629674958,-834.55,0.00024643,30]
[380263016,1755629675005,-2028.51,0.00024643,30]
[380263017,1755629675054,-400.0,0.00024643,30]
[380263018,1755629675104,-2611.6,0.00024643,30]
[380263019,1755629675155,-400.0,0.00024643,30]
[380263020,1755629675206,-400.0,0.00024643,30]
[380263021,1755629675261,-3231.28,0.00024643,30]
[380263022,1755629675314,-1122.01,0.00024643,30]
[380263023,1755629675369,-777.5,0.00024643,30]
[380263024,1755629675423,-4782.01,0.00024643,30]
[380263025,1755629675474,-520.94,0.00024643,30]
[380263026,1755629675527,-2348.43,0.00024643,30]
[380263027,1755629675579,-2516.46,0.00024643,30]
[380263028,1755629675634,-424.95,0.00024643,30]
[380263029,1755629675688,-1526.27,0.00024643,30]
[380263030,1755629675742,-372.62789745,0.00024643,30]
[380263031,1755629675793,-8524.05,0.00024643,30]
[380263032,1755629675841,-3059.67,0.00024643,30]
[380263033,1755629675890,-666.12,0.00024643,30]
[380263034,1755629675936,-400.0,0.00024643,30]
[380263035,1755629675980,-515.84,0.00024643,30]
[380263036,1755629676025,-1507.55,0.00024643,30]
[380263037,1755629676069,-780.16,0.00024643,30]
[380263038,1755629676114,-969.16,0.00024643,30]
[380263039,1755629676159,-3650.84,0.00024643,30]
[380263040,1755629676204,-2356.88,0.00024643,30]
[380263041,1755629676252,-3890.97,0.00024643,30]
[380263042,1755629676299,-2391.14,0.00024643,30]
[380263043,1755629676348,-2014.11,0.00024643,30]
[380263044,1755629676394,-400.0,0.00024643,30]
[380263045,1755629676438,-1638.73,0.00024643,30]
[380263046,1755629676480,-1465.39,0.00024643,30]
[380263047,1755629676522,-3634.02,0.00024643,30]
[380263048,1755629676565,-1260.84,0.00024643,30]
[380263049,1755629676606,-400.0,0.00024643,30]
[380263050,1755629676649,-400.0,0.00024643,30]
[380263051,1755629676705,-5708.89,0.00024643,30]
[380263052,1755629676753,-2109.09,0.00024643,30]
[380263053,1755629676798,-540.39,0.00024643,30]
[380263054,1755629676842,-2438.86,0.00024643,30]
[380263055,1755629676886,-2744.23,0.00024643,30]
[380263056,1755629676929,-1157.36,0.00024643,30]
[380263057,1755629676971,-926.19,0.00024643,30]
[380263058,1755629677015,-400.0,0.00024643,30]
[380263059,1755629677059,-555.23,0.00024643,30]
[380263060,1755629677107,-498.22,0.00024643,30]
[380263061,1755629677156,-401.66,0.00024643,30]
[380263062,1755629677208,-5111.01,0.00024643,30]
[380263063,1755629677260,-2294.56,0.00024643,30]
[380263064,1755629677308,-13224.65,0.00024643,30]
[380263065,1755629677360,-1154.07,0.00024643,30]
[380263066,1755629677411,-467.23,0.00024643,30]
[380263067,1755629677456,-1163.01,0.00024643,30]
[380263068,1755629677500,-6316.39,0.00024643,30]
[380263069,1755629677544,-2927.42,0.00024643,30]
[380263070,1755629677586,-2365.07,0.00024643,30]
[380263071,1755629677629,-2100.43,0.00024643,30]
[380263072,1755629677671,-3429.34,0.00024643,30]
[380263073,1755629677716,-400.0,0.00024643,30]
[380263074,1755629677763,-2472.13,0.00024643,30]
[380263075,1755629677807,-2445.13,0.00024643,30]
[380263076,1755629677855,-400.0,0.00024643,30]
[380263077,1755629677900,-552.77,0.00024643,30]
[380263078,1755629677946,-2010.83,0.00024643,30]
[380263079,1755629677990,-3116.51,0.00024643,30]
[380263080,1755629678045,-863.0,0.00024644,30]
[380263081,1755629678096,-500.0,0.00024644,30]
[380263082,1755629678145,-500.0,0.00024644,30]
[380263083,1755629678196,-153.0,0.00024658,30]
[380263084,1755629678254,-153.0,0.00024658,30]
[380263085,1755629678310,-184.90134592,0.00024658,30]
[380263086,1755629678360,-500.0,0.00024658,30]
[380263087,1755629678412,-400.0,0.00024917,30]
[380263088,1755629678458,-400.0,0.00024917,30]
[380263089,1755629678503,-400.0,0.00024917,30]
[380263090,1755629678545,-400.0,0.00024917,30]
[380263091,1755629678589,-400.0,0.00024917,30]
[380263092,1755629678634,-400.0,0.00024917,30]
[380263093,1755629678680,-400.0,0.00024917,30]
[380263094,1755629678724,-400.0,0.00024917,30]
[380263095,1755629678770,-400.0,0.00024917,30]
[380263096,1755629678817,-400.0,0.00024917,30]
[380263097,1755629678867,-400.0,0.00024917,30]
[380263098,1755629678915,-400.0,0.00024917,30]
[380263099,1755629678963,-400.0,0.00024917,30]
[380263100,1755629679009,-751.43,0.00024917,30]
[380263101,1755629679057,-400.0,0.00024917,30]
[380263102,1755629679110,-582.29,0.00024917,30]
[380263103,1755629679157,-400.0,0.00024917,30]
[380263104,1755629679209,-400.0,0.00024917,30]
[380263105,1755629679266,-400.0,0.00024917,30]
[380263106,1755629679320,-539.21,0.00024917,30]
[380263107,1755629679373,-400.0,0.00024917,30]
[380263108,1755629679425,-400.0,0.00024917,30]
[380263109,1755629679476,-1143.82,0.00024917,30]
[380263110,1755629679524,-1264.14,0.00024917,30]
[380263111,1755629679571,-1256.72,0.00024917,30]
[380263112,1755629679616,-400.0,0.00024917,30]
[380263113,1755629679665,-1048.78,0.00024917,30]
[380263114,1755629679714,-400.0,0.00024917,30]
[380263115,1755629679765,-1011.63,0.00024917,30]
[380263116,1755629679814,-400.0,0.00024917,30]
[380263117,1755629679863,-808.67,0.00024917,30]
[380263118,1755629679915,-400.0,0.00024917,30]
[380263119,1755629679966,-422.25,0.00024917,30]
[380263120,1755629680016,-493.74,0.00024917,30]
[380263121,1755629680064,-400.0,0.00024917,30]
[380263122,1755629680120,-400.0,0.00024917,30]
[380263123,1755629680170,-456.52,0.00024917,30]
[380263124,1755629680221,-1355.75,0.00024917,30]
[380263125,1755629680272,-957.1,0.00024917,30]
[380263126,1755629680774,-400.0,0.00024917,30]
[380263127,1755629680824,-400.0,0.00024917,30]
[380263128,1755629680871,-1391.13,0.00024917,30]
[380263129,1755629680919,-667.04,0.00024917,30]
[380263130,1755629680965,-400.0,0.00024917,30]
[380263131,1755629681010,-513.07,0.00024917,30]
[380263132,1755629681056,-400.0,0.00024917,30]
[380263133,1755629681106,-1197.04,0.00024917,30]
[380263134,1755629681154,-400.0,0.00024917,30]
[380263135,1755629681201,-400.0,0.00024917,30]
[380263136,1755629681252,-400.0,0.00024917,30]
[380263137,1755629681300,-1904.09,0.00024917,30]
[380263138,1755629681352,-400.0,0.00024917,30]
[380263139,1755629681401,-400.0,0.00024917,30]
[380263140,1755629681449,-203.94455622,0.00024917,30]
[380263141,1755629681509,-711.64,0.00024917,30]
[380263142,1755629681555,-1000.42,0.00024917,30]
[380263143,1755629681605,-400.0,0.00024917,30]
[380263144,1755629681649,-491.72,0.00024917,30]
[380263145,1755629681694,-499.72,0.00024917,30]
[380263146,1755629681738,-444.64,0.00024917,30]
[380263147,1755629681783,-545.6,0.00024917,30]
[380263148,1755629681829,-400.0,0.00024917,30]
[380263149,1755629681873,-400.0,0.00024917,30]
[380263150,1755629681916,-435.01,0.00024917,30]
[380263151,1755629681960,-1727.0,0.00024917,30]
[380263152,1755629682002,-400.0,0.00024917,30]
[380263153,1755629682046,-1388.4,0.00024917,30]
[380263154,1755629682096,-400.0,0.00024917,30]
[380263155,1755629682164,-400.0,0.00024917,30]
[380263156,1755629682219,-1218.21,0.00024917,30]
[380263157,1755629682270,-389.06582231,0.00024917,30]
[380263158,1755629682319,-2850.07,0.00024917,30]
[380263159,1755629682370,-400.0,0.00024917,30]
[380263160,1755629682425,-483.4,0.00024917,30]
[380263161,1755629682475,-624.64,0.00024917,30]
[380263162,1755629682521,-400.0,0.00024917,30]
[380263163,1755629682567,-470.87,0.00024917,30]
[380263164,1755629682615,-925.83,0.00024917,30]
[380263165,1755629682661,-952.43,0.00024917,30]
[380263166,1755629682710,-904.73,0.00024917,30]
[380263167,1755629682759,-400.0,0.00024917,30]
[380263168,1755629682804,-2120.71,0.00024917,30]
[380263169,1755629682854,-485.02,0.00024917,30]
[380263170,1755629682902,-957.89,0.00024917,30]
[380263171,1755629682949,-1582.9,0.00024917,30]
[380263172,1755629682994,-400.0,0.00024917,30]
[380263173,1755629683051,-400.0,0.00024917,30]
[380263174,1755629683114,-400.0,0.00024917,30]
[380263175,1755629683164,-1485.26,0.00024917,30]
[380263176,1755629683213,-400.0,0.00024917,30]
[380263177,1755629683262,-1106.61,0.00024917,30]
[380263178,1755629683311,-400.0,0.00024917,30]
[380263179,1755629683359,-400.0,0.00024917,30]
[380263180,1755629683412,-1275.31,0.00024917,30]
[380263181,1755629683458,-400.0,0.00024917,30]
[380263182,1755629683503,-400.0,0.00024917,30]
[380263183,1755629683549,-508.35,0.00024917,30]
[380263184,1755629683594,-1819.77,0.00024917,30]
[380263185,1755629683640,-1393.08,0.00024917,30]
[380263186,1755629683686,-400.0,0.00024917,30]
[380263187,1755629683736,-224.80352628,0.00024917,30]
[380263188,1755629683782,-849.04,0.00024917,30]
[380263189,1755629683831,-400.0,0.00024917,30]
[380263190,1755629683878,-2238.21,0.00024917,30]
[380263191,1755629683925,-400.0,0.00024917,30]
[380263192,1755629683972,-1263.11,0.00024917,30]
[380263193,1755629684019,-1826.5,0.00024917,30]
[380263194,1755629684067,-1860.35,0.00024917,30]
[380263195,1755629684115,-400.0,0.00024917,30]
[380263196,1755629684163,-1169.66,0.00024917,30]
[380263197,1755629684212,-400.0,0.00024917,30]
[380263198,1755629684265,-803.9,0.00024917,30]
[380263199,1755629684316,-406.36,0.00024917,30]
[380263200,1755629684368,-1003.38,0.00024917,30]
[380263201,1755629684426,-400.0,0.00024917,30]
[380263202,1755629684473,-796.02,0.00024917,30]
[380263203,1755629684520,-897.52,0.00024917,30]
[380263204,1755629684567,-2177.12,0.00024917,30]
[380263205,1755629684612,-437.94,0.00024917,30]
[380263206,1755629684657,-201.08972249,0.00024917,30]
[380263207,1755629684705,-1383.47,0.00024917,30]
[380263208,1755629684752,-985.17,0.00024917,30]
[380263209,1755629684797,-400.0,0.00024917,30]
[380263210,1755629684844,-1598.61,0.00024917,30]
[380263211,1755629684893,-400.0,0.00024917,30]
[380263212,1755629684942,-667.94,0.00024917,30]
[380263213,1755629684990,-400.0,0.00024917,30]
[380263214,1755629685039,-610.47,0.00024917,30]
[380263215,1755629685093,-400.0,0.00024917,30]
[380263216,1755629685147,-382.17339946,0.00024917,30]
[380263217,1755629685200,-3316.1,0.00024917,30]
[380263218,1755629685253,-436.93,0.00024917,30]
[380263219,1755629685306,-400.0,0.00024917,30]
[380263220,1755629685361,-426.8,0.00024917,30]
[380263221,1755629685414,-400.0,0.00024917,30]
[380263222,1755629685471,-400.0,0.00024917,30]
[380263223,1755629685524,-400.0,0.00024917,30]
[380263224,1755629685576,-400.0,0.00024917,30]
[380263225,1755629685626,-837.96,0.00024917,30]
[380263226,1755629685675,-400.0,0.00024917,30]
[380263227,1755629685724,-400.0,0.00024917,30]
[380263228,1755629685772,-673.87,0.00024917,30]
[380263229,1755629685819,-2406.12,0.00024917,30]
[380263230,1755629685869,-1884.2,0.00024917,30]
[380263231,1755629685915,-400.0,0.00024917,30]
[380263232,1755629685960,-400.0,0.00024917,30]
[380263233,1755629686006,-404.78,0.00024917,30]
[380263234,1755629686050,-1106.6,0.00024917,30]
[380263235,1755629686100,-595.97,0.00024917,30]
[380263236,1755629686150,-400.0,0.00024917,30]
[380263237,1755629686198,-676.66,0.00024917,30]
[380263238,1755629686246,-400.0,0.00024917,30]
[380263239,1755629686293,-472.39,0.00024917,30]
[380263240,1755629686343,-400.0,0.00024917,30]
[380263241,1755629686820,-585.0,0.00024917,30]
[380263242,1755629686869,-513.3370279,0.00024917,30]
[380263243,1755629686913,-1024.24,0.00024917,30]
[380263244,1755629686959,-465.63,0.00024917,30]
[380263245,1755629687002,-2512.69,0.00024917,30]
[380263246,1755629687047,-629.38,0.00024917,30]
[380263247,1755629687094,-2439.33,0.00024917,30]
[380263248,1755629687146,-3255.31,0.00024917,30]
[380263249,1755629687199,-986.14,0.00024917,30]
[380263250,1755629687250,-2287.36,0.00024917,30]
[380263251,1755629687304,-676.09,0.00024917,30]
[380263252,1755629687358,-2147.13,0.00024917,30]
[380263253,1755629687408,-400.0,0.00024917,30]
[380263254,1755629687460,-575.38,0.00024917,30]
[380263255,1755629687507,-2448.43,0.00024917,30]
[380263256,1755629687554,-400.0,0.00024917,30]
[380263257,1755629687600,-590.83,0.00024917,30]
[380263258,1755629687646,-2283.21,0.00024917,30]
[380263259,1755629687692,-1666.38,0.00024917,30]
[380263260,1755629687741,-1917.1,0.00024917,30]
[380263261,1755629687788,-400.0,0.00024917,30]
[380263262,1755629687833,-400.0,0.00024917,30]
[380263263,1755629687879,-1241.13,0.00024917,30]
[380263264,1755629687926,-2614.06,0.00024917,30]
[380263265,1755629687974,-3258.07,0.00024917,30]
[380263266,1755629688026,-2570.46,0.00024917,30]
[380263267,1755629688077,-1183.82,0.00024917,30]
[380263268,1755629688129,-1001.1,0.00024917,30]
[380263269,1755629688180,-2155.5,0.00024917,30]
[380263270,1755629688231,-1264.59,0.00024917,30]
[380263271,1755629688282,-400.0,0.00024917,30]
[380263272,1755629688333,-1117.83,0.00024917,30]
[380263273,1755629688387,-795.22,0.00024917,30]
[380263274,1755629688442,-1338.87,0.00024917,30]
[380263275,1755629688498,-587.48,0.00024917,30]
[380263276,1755629688549,-2323.63,0.00024917,30]
[380263277,1755629688596,-400.0,0.00024917,30]
[380263278,1755629688644,-400.0,0.00024917,30]
[380263279,1755629688693,-2517.35,0.00024917,30]
[380263280,1755629688740,-2662.98,0.00024917,30]
[380263281,1755629688786,-1544.99,0.00024917,30]
[380263282,1755629688833,-646.84,0.00024917,30]
[380263283,1755629688877,-400.0,0.00024917,30]
[380263284,1755629688924,-764.98,0.00024917,30]
[380263285,1755629688971,-728.66,0.00024917,30]
[380263286,1755629689017,-2531.47,0.00024917,30]
[380263287,1755629689066,-776.93,0.00024917,30]
[380263288,1755629689118,-400.0,0.00024917,30]
[380263289,1755629689170,-2693.83,0.00024917,30]
[380263290,1755629689219,-2225.65,0.00024917,30]
[380263291,1755629689270,-516.32,0.00024917,30]
[380263292,1755629689320,-463.45,0.00024917,30]
[380263293,1755629689368,-400.0,0.00024917,30]
[380263294,1755629689414,-400.0,0.00024917,30]
[380263295,1755629689463,-400.0,0.00024917,30]
[380263296,1755629689507,-362.90552302,0.00024917,30]
[380263297,1755629689551,-1875.41,0.00024917,30]
[380263298,1755629689596,-810.62,0.00024917,30]
[380263299,1755629689644,-656.82,0.00024917,30]
[380263300,1755629689689,-2010.66,0.00024917,30]
[380263301,1755629689734,-3273.57,0.00024917,30]
[380263302,1755629689778,-400.0,0.00024917,30]
[380263303,1755629689823,-724.21,0.00024917,30]
[380263304,1755629689869,-432.79,0.00024917,30]
[380263305,1755629689911,-400.0,0.00024917,30]
[380263306,1755629689954,-1201.82,0.00024917,30]
[380263307,1755629689996,-552.27,0.00024917,30]
[380263308,1755629690038,-400.0,0.00024917,30]
[380263309,1755629690080,-2234.63,0.00024917,30]
[380263310,1755629690122,-3387.39,0.00024917,30]
[380263311,1755629690167,-3242.02,0.00024917,30]
[380263312,1755629690213,-3031.42,0.00024917,30]
[380263313,1755629690257,-4506.15,0.00024917,30]
[380263314,1755629690302,-2268.72,0.00024917,30]
[380263315,1755629690349,-622.38,0.00024917,30]
[380263316,1755629690399,-400.0,0.00024917,30]
[380263317,1755629690449,-2569.35,0.00024917,30]